bitfinex/quotes_ETHUSD_20230118
["timestamp","ask_amount","ask_price","bid_price","bid_amount"]
[1674060748035,22.26139617,1512.6,1512.5,0.0001]
[1674060748298,13.57026617,1512.6,1512.5,0.0001]
[1674060748619,20.88274346,1512.6,1512.5,0.0001]
[1674060748791,20.74190173,1512.6,1512.5,0.0001]
[1674060749132,34.48964932,1512.6,1512.3,0.00114055]
[1674060749304,28.883,1512.4,1512.3,0.00114055]
[1674060749516,40.34874759,1512.4,1512.3,0.00114055]
[1674060749839,44.21548932,1512.4,1512.3,0.00114055]
[1674060751043,26.79464,1512.2,1512.1,0.11848227]
[1674060751244,38.74895159,1512.2,1512.1,0.11848227]
[1674060751403,8.07391773,1512.1,1511.9,0.11463172]
[1674060751606,25.09263773,1512.1,1511.9,0.11463172]
[1674060751812,29.02112705,1512.1,1512.0,0.00048227]
[1674060752066,29.02112705,1512.1,1511.9,0.00111399]
[1674060752342,21.05696029,1512.0,1511.7,0.11934902]
[1674060752550,9.04,1511.8,1511.7,0.11934902]
[1674060752760,9.04,1511.8,1511.5,0.12728788]
[1674060752761,0.11899098,1511.7,1511.5,0.12728788]
[1674060753011,35.9988,1511.6,1511.5,0.12728788]
[1674060753225,39.2948,1511.6,1511.5,0.12728788]
[1674060753418,32.3413,1511.6,1511.5,0.12728788]
[1674060753599,22.9125,1511.6,1511.5,0.12728788]
[1674060753811,0.066,1511.6,1511.5,0.12728788]
[1674060754023,0.9158991,1511.7,1511.6,0.066]
[1674060754230,0.066,1511.9,1511.6,0.066]
[1674060754494,9.5159927,1512.0,1511.6,0.066]
[1674060754495,9.5819927,1512.0,1511.8,0.36265391]
[1674060754705,0.066,1512.0,1511.8,0.36265391]
[1674060754872,0.066,1512.2,1511.8,0.36265391]
[1674060755084,6.61301,1512.2,1511.9,0.36265391]
[1674060755281,1.0,1511.9,1511.6,0.42865391]
[1674060755492,9.047,1511.8,1511.6,0.066]
[1674060755706,0.9047,1511.7,1511.5,0.12728788]
[1674060755953,16.8173,1511.6,1511.5,0.12728788]
[1674060756118,17.52004173,1511.6,1511.5,0.12728788]
[1674060756331,19.75004173,1511.6,1511.5,0.12728788]
[1674060756597,13.06998617,1511.6,1511.5,0.12728788]
[1674060756752,13.06998617,1511.6,1511.5,0.48994179]
[1674060757274,3.066,1511.6,1511.5,0.48994179]
[1674060757492,16.231,1511.6,1511.5,0.48994179]
[1674060757803,16.231,1511.6,1511.5,0.12728788]
[1674060757804,25.337,1511.6,1511.5,0.12728788]
[1674060758013,33.08554173,1511.6,1511.5,0.12728788]
[1674060758271,40.34734949,1511.6,1511.5,0.12728788]
[1674060758695,38.49334949,1511.6,1511.5,0.12728788]
[1674060759320,35.2016019,1511.6,1511.5,0.12728788]
[1674060759692,38.49334949,1511.6,1511.5,0.00028788]
[1674060759920,6.956,1511.4,1511.1,0.12170721]
[1674060760130,8.521,1511.2,1511.1,0.12170721]
[1674060760392,24.8215,1511.2,1511.1,0.12170721]
[1674060760550,26.0515,1511.2,1511.1,0.12170721]
[1674060760762,0.066,1511.2,1511.1,0.48436112]
[1674060760970,0.066,1511.3,1511.1,0.48436112]
[1674060761234,6.68261,1511.4,1511.1,0.48436112]
[1674060761441,0.066,1511.4,1511.3,0.36265391]
[1674060761657,13.23169,1511.6,1511.3,0.36265391]
[1674060761867,6.61612,1511.5,1511.2,0.4964]
[1674060762086,6.61612,1511.5,1510.9,0.18886731]
[1674060762087,6.956,1511.4,1510.9,0.18886731]
[1674060762257,8.533,1511.1,1510.5,0.0345989]
[1674060762603,6.956,1510.9,1510.8,0.056]
[1674060762814,0.066,1510.9,1510.5,0.5311989]
[1674060762978,4.23541371,1511.3,1510.9,1.0]
[1674060762979,7.37274,1511.3,1510.9,1.0]
[1674060763185,0.064,1511.0,1510.9,1.4965]
[1674060763394,0.6976,1511.3,1510.9,0.36265391]
[1674060763395,2.88734173,1511.3,1510.9,0.36265391]
[1674060763645,2.88734173,1511.3,1511.2,0.36265391]
[1674060763859,2.88734173,1511.3,1510.8,0.5625]
[1674060764019,2.88734173,1511.3,1510.7,0.36265391]
[1674060764020,16.61736173,1511.3,1510.6,7.11643]
[1674060764393,1.0,1511.1,1510.7,0.36265391]
[1674060764603,7.11472,1511.0,1510.8,0.36265391]
[1674060764819,0.066,1511.0,1510.9,0.36265391]
[1674060765027,0.066,1511.2,1510.9,0.36265391]
[1674060765176,0.066,1511.2,1511.1,0.36265391]
[1674060765177,0.85644779,1511.2,1511.1,0.36265391]
[1674060765388,7.32668,1511.3,1511.1,0.36265391]
[1674060765389,0.066,1511.3,1511.1,0.36265391]
[1674060765663,0.066,1511.4,1511.1,0.36265391]
[1674060765968,6.61604,1511.5,1511.2,0.36265391]
[1674060765969,0.066,1511.5,1511.2,0.36265391]
[1674060766138,1.0,1511.5,1511.1,0.066]
[1674060766351,0.63674173,1511.4,1511.1,0.4964]
[1674060766601,0.066,1511.5,1511.3,0.36265391]
[1674060766810,0.2279,1511.7,1511.3,0.36265391]
[1674060766985,0.004,1511.8,1511.6,0.36265391]
[1674060767175,10.0,1512.3,1511.6,0.36265391]
[1674060767176,0.126,1512.3,1511.7,0.4962]
[1674060767391,8.18224,1512.6,1511.7,0.4962]
[1674060767392,1.637,1512.6,1511.8,13.22908]
[1674060767627,6.67107,1512.7,1512.1,0.36265391]
[1674060767628,1.0,1512.5,1512.1,0.36265391]
[1674060767812,1.0,1512.5,1511.9,7.11013]
[1674060767813,1.0,1512.5,1512.4,0.36265391]
[1674060768020,1.1,1512.5,1512.4,0.36265391]
[1674060768230,0.1,1512.5,1512.3,0.36265391]
[1674060768442,1.65543372,1512.8,1512.3,0.36265391]
[1674060768655,0.63674173,1512.6,1512.3,0.36265391]
[1674060768901,0.63674173,1512.6,1512.1,0.4961]
[1674060768902,0.63674173,1512.6,1512.1,7.10918]
[1674060769070,1.08743372,1512.8,1512.2,6.61286]
[1674060769277,0.10874337,1512.7,1512.2,6.67886]
[1674060769505,0.10874337,1512.7,1512.6,0.36265391]
[1674060770851,0.7454851,1512.7,1512.1,0.36265391]
[1674060771064,0.7454851,1512.7,1512.0,0.5621]
[1674060771065,1.07454851,1512.6,1512.0,0.5621]
[1674060771271,1.07454851,1512.6,1511.8,0.066]
[1674060771272,6.956,1512.4,1511.8,0.066]
[1674060771552,7.518,1512.4,1511.7,0.36265391]
[1674060771718,6.956,1512.2,1511.7,0.36265391]
[1674060771906,7.022,1512.2,1511.7,0.36265391]
[1674060772120,10.59274173,1512.1,1511.6,0.36265391]
[1674060772431,3.7682,1512.1,1511.6,6.61539]
[1674060772642,0.70274173,1512.2,1512.0,0.36265391]
[1674060772898,0.63674173,1512.2,1512.1,0.36265391]
[1674060773110,3.562,1512.4,1512.1,0.36265391]
[1674060773111,3.066,1512.4,1512.1,0.36265391]
[1674060773302,0.3562,1512.3,1511.9,6.61418]
[1674060773521,4.066,1512.5,1512.2,0.36265391]
[1674060773727,4.0,1512.5,1512.2,0.36265391]
[1674060773944,3.63644851,1512.6,1512.4,0.36265391]
[1674060774275,0.36364485,1512.5,1512.4,0.36265391]
[1674060774589,2.20719024,1512.6,1512.4,0.36265391]
[1674060774746,0.63674173,1512.5,1512.4,0.36265391]
[1674060775111,0.07454851,1512.6,1512.4,0.36265391]
[1674060775642,0.15803262,1512.8,1512.4,6.97461391]
[1674060775790,0.09403262,1512.8,1512.4,7.17396]
[1674060775999,0.09403262,1512.8,1512.7,0.36265391]
[1674060776000,0.09203262,1512.8,1512.7,0.36265391]
[1674060776214,0.09203262,1512.8,1512.3,0.562]
[1674060776461,0.79683588,1512.8,1512.2,0.5621]
[1674060776738,0.79683588,1512.8,1512.0,0.066]
[1674060776739,14.49506346,1512.7,1512.0,0.066]
[1674060776987,1.0,1512.5,1512.0,0.4961]
[1674060777183,0.1,1512.4,1511.9,0.85885391]
[1674060777395,0.73674173,1512.4,1511.9,6.97675391]
[1674060777646,0.73674173,1512.4,1511.9,13.29429]
[1674060777797,0.07367417,1512.3,1511.9,13.29429]
[1674060778001,1.0,1512.5,1511.9,13.29429]
[1674060778212,3.5619,1512.6,1511.9,13.79049]
[1674060778475,10.4519,1512.6,1512.4,0.36265391]
[1674060778727,1.04519,1512.5,1512.1,0.36265391]
[1674060778901,3.5619,1512.6,1512.1,0.36265391]
[1674060779209,3.0,1512.6,1512.5,0.36265391]
[1674060779371,3.86283588,1512.8,1512.5,0.36265391]
[1674060779581,0.38628359,1512.7,1512.5,0.36265391]
[1674060780261,0.63674173,1512.6,1512.2,0.066]
[1674060780414,0.63674173,1512.6,1511.9,0.91885391]
[1674060780415,13.568,1512.4,1511.9,0.36265391]
[1674060780625,3.0,1512.3,1511.9,0.36265391]
[1674060780833,3.63674173,1512.3,1511.9,0.36265391]
[1674060781104,1.0,1512.2,1511.9,0.36265391]
[1674060781270,0.1,1512.1,1511.9,0.36265391]
[1674060781487,0.066,1512.2,1511.9,6.97672391]
[1674060781801,19.90928359,1512.7,1511.9,6.97672391]
[1674060781802,0.066,1512.4,1512.1,6.97596391]
[1674060781999,1.0,1512.4,1512.1,0.42865391]
[1674060782360,0.1,1512.3,1512.0,7.97611391]
[1674060782532,3.0,1512.5,1512.2,0.36265391]
[1674060782885,0.066,1512.6,1512.2,13.22561]
[1674060783102,0.13156551,1512.6,1512.5,0.36265391]
[1674060783463,0.38628359,1512.7,1512.5,0.36265391]
[1674060783797,0.38628359,1512.7,1512.4,6.67777]
[1674060783798,0.38628359,1512.7,1512.6,0.36265391]
[1674060784216,0.09203262,1512.8,1512.6,0.36265391]
[1674060784445,0.03193,1512.7,1512.6,13.58491391]
[1674060784657,0.03193,1512.7,1512.6,13.65091391]
[1674060784834,0.03193,1512.7,1512.6,0.42865391]
[1674060785047,0.03193,1512.7,1512.6,0.36265391]
[1674060785620,0.03193,1512.7,1512.6,7.46968391]
[1674060785836,0.03193,1512.7,1512.6,14.14681391]
[1674060785986,3e-05,1512.7,1512.6,14.37681391]
[1674060786197,0.03193,1513.1,1512.7,1.002]
[1674060786431,0.03193,1513.1,1513.0,0.36265391]
[1674060786871,0.03193,1513.1,1513.0,13.58141391]
[1674060787079,0.08533272,1513.4,1513.0,14.37321391]
[1674060787293,0.08533272,1513.4,1513.3,0.36265391]
[1674060787642,1.0,1513.6,1513.3,13.57879391]
[1674060787643,0.002,1513.6,1513.3,13.57879391]
[1674060787964,0.4955,1513.9,1513.3,13.77784]
[1674060788131,0.57919662,1513.9,1513.3,13.28214]
[1674060788350,0.57919662,1513.9,1513.4,1.0]
[1674060788681,0.4955,1513.9,1513.8,0.36265391]
[1674060788849,1.09139243,1514.0,1513.8,0.36265391]
[1674060789059,1.20967092,1514.0,1513.8,0.36265391]
[1674060789282,1.20967092,1514.0,1513.5,7.16864]
[1674060789513,1.20967092,1514.0,1513.9,0.36265391]
[1674060789851,0.09139243,1514.0,1513.9,0.36265391]
[1674060790289,1.09139243,1514.1,1513.9,13.57355391]
[1674060790437,1.09139243,1514.1,1514.0,0.4955]
[1674060790808,1.09139243,1514.1,1514.0,6.60501]
[1674060790975,0.09451596,1514.2,1514.0,13.27602]
[1674060791187,0.09451596,1514.2,1514.1,0.36265391]
[1674060792056,0.73125769,1514.2,1514.1,0.36265391]
[1674060792270,0.09451596,1514.2,1514.1,13.57181391]
[1674060792506,0.09451596,1514.2,1514.1,13.63781391]
[1674060792695,0.09451596,1514.2,1514.1,7.03323391]
[1674060792696,5.96e-06,1514.2,1514.1,7.03323391]
[1674060792867,5.96e-06,1514.2,1514.1,7.52863391]
[1674060793299,5.96e-06,1514.2,1514.1,0.42865391]
[1674060793541,5.96e-06,1514.2,1514.1,0.36265391]
[1674060793861,5.96e-06,1514.2,1513.9,7.16661]
[1674060793862,0.63674769,1514.2,1513.9,0.42865391]
[1674060794046,0.63674769,1514.2,1513.9,1.0]
[1674060794258,0.4954,1514.1,1513.9,1.36265391]
[1674060794467,0.4954,1514.1,1513.9,0.36265391]
[1674060794792,0.63674173,1514.0,1513.9,0.36265391]
[1674060795015,5.96e-06,1514.2,1513.9,13.57355391]
[1674060795184,5.96e-06,1514.2,1514.0,0.4955]
[1674060795407,5.96e-06,1514.2,1513.9,0.42865391]
[1674060795764,5.96e-06,1514.2,1514.1,0.36265391]
[1674060795907,5.96e-06,1514.2,1514.1,6.96723391]
[1674060796109,8.80475063,1514.7,1514.1,7.52863391]
[1674060796319,3.85296988,1514.7,1514.1,13.77056]
[1674060796525,1.0,1514.6,1514.2,6.60394]
[1674060796793,0.63674173,1514.6,1514.2,7.03259391]
[1674060797012,0.92251872,1514.6,1514.2,7.03259391]
[1674060797319,0.63674173,1514.5,1514.2,0.42865391]
[1674060797476,0.63674173,1514.5,1514.2,0.36265391]
[1674060797477,0.86674173,1514.5,1514.2,0.36265391]
[1674060797685,3.86674173,1514.5,1514.2,0.36265391]
[1674060797898,1.63674173,1514.4,1514.2,0.36265391]
[1674060798109,0.16367417,1514.3,1514.2,0.36265391]
[1674060798561,0.16367417,1514.3,1514.0,13.27538]
[1674060798750,0.16367417,1514.3,1514.2,0.36265391]
[1674060798981,0.63674173,1514.4,1514.2,0.36265391]
[1674060799197,3.0,1514.5,1514.2,0.36265391]
[1674060799372,3.066,1514.6,1514.2,6.60414]
[1674060799581,0.70734063,1514.7,1514.5,0.36265391]
[1674060799850,0.0045989,1514.7,1514.5,13.56831391]
[1674060800060,0.09774185,1514.8,1514.5,13.56831391]
[1674060800061,0.09774185,1514.8,1514.6,1.4953]
[1674060800454,0.09774185,1514.8,1514.7,19.80588]
[1674060800668,0.09774185,1514.8,1514.7,13.63257391]
[1674060800875,1.85e-06,1514.8,1514.7,13.63257391]
[1674060801096,0.10325353,1515.0,1514.7,14.12777391]
[1674060801266,0.10325353,1515.0,1514.9,13.20218]
[1674060801485,0.10325353,1515.0,1514.9,7.02974391]
[1674060802168,0.10325353,1515.0,1514.9,0.066]
[1674060802337,0.10325353,1515.0,1514.6,0.066]
[1674060802338,0.73999526,1515.0,1514.6,0.066]
[1674060802534,0.07399953,1514.9,1514.5,0.066]
[1674060802747,0.07399953,1514.9,1514.4,0.92395391]
[1674060802978,0.07399953,1514.9,1514.3,14.79116]
[1674060802979,1.13194173,1514.8,1514.3,0.066]
[1674060803205,6.94537417,1514.7,1514.2,0.066]
[1674060803425,6.94537417,1514.7,1514.0,0.066]
[1674060803426,3.4953,1514.6,1514.0,0.066]
[1674060803612,19.80935,1514.5,1513.9,0.066]
[1674060803793,3.4953,1514.4,1513.8,0.066]
[1674060804003,3.4953,1514.4,1513.7,7.16756]
[1674060804004,6.95359,1514.3,1513.7,7.16756]
[1674060804249,3.0,1514.2,1513.7,7.16756]
[1674060804462,3.0,1514.2,1514.0,0.36265391]
[1674060805214,10.01926,1514.3,1513.8,7.67181]
[1674060805598,1.001926,1514.2,1514.0,0.36265391]
[1674060805809,7.606186,1514.2,1513.6,6.96931391]
[1674060806025,1.39736033,1514.1,1513.6,0.066]
[1674060806244,13.21021,1514.0,1513.3,6.67367]
[1674060806456,0.4955,1513.9,1513.5,0.36265391]
[1674060806672,12.05896273,1513.9,1513.5,0.36265391]
[1674060806863,1.0,1513.8,1513.5,0.36265391]
[1674060807089,11.488221,1513.9,1513.5,0.36265391]
[1674060807090,3.5615,1513.9,1513.5,0.36265391]
[1674060807289,13.21045,1514.0,1513.6,0.36265391]
[1674060807290,0.5615,1514.0,1513.6,0.36265391]
[1674060807505,0.4955,1514.0,1513.4,13.28056]
[1674060807711,10.4314486,1514.1,1513.8,0.36265391]
[1674060807712,4.3220186,1514.1,1513.8,0.36265391]
[1674060807946,4.3220186,1514.1,1513.5,0.066]
[1674060807947,4.2560186,1514.1,1513.5,0.066]
[1674060808134,4.2560186,1514.1,1513.4,0.42865391]
[1674060808135,0.63674173,1514.0,1513.4,0.42865391]
[1674060808327,0.4955,1513.9,1513.3,7.03646391]
[1674060808554,0.4955,1513.9,1513.3,6.67381]
[1674060808555,10.10131,1513.9,1513.3,6.67381]
[1674060808944,10.16731,1513.9,1513.3,6.67381]
[1674060809074,1.016731,1513.8,1513.4,0.36265391]
[1674060809542,0.066,1513.9,1513.6,0.36265391]
[1674060809713,6.67107,1514.0,1513.8,0.36265391]
[1674060809929,0.066,1514.0,1513.6,1.0]
[1674060810145,10.8605986,1514.1,1513.6,1.0]
[1674060810146,7.9265986,1514.1,1513.6,1.0]
[1674060810332,0.066,1514.1,1513.9,0.36265391]
[1674060810545,6.67044,1514.2,1513.9,0.36265391]
[1674060810808,0.066,1514.2,1513.9,0.36265391]
[1674060811039,13.70324,1514.3,1513.9,0.36265391]
[1674060811040,0.066,1514.3,1513.9,0.36265391]
[1674060811175,6.60378,1514.3,1514.0,0.36265391]
[1674060811381,13.27356,1514.3,1514.0,0.36265391]
[1674060811652,1.0,1514.2,1514.0,0.36265391]
[1674060811817,20.30914,1514.1,1513.5,0.5616]
[1674060812029,20.30914,1514.1,1513.4,6.66746]
[1674060812030,20.37514,1514.1,1513.4,0.42865391]
[1674060812270,2.037514,1514.0,1513.4,0.36265391]
[1674060812486,6.60533,1514.0,1513.4,13.57789391]
[1674060812705,6.67133,1514.0,1513.9,0.36265391]
[1674060812916,0.066,1514.0,1513.9,0.36265391]
[1674060813131,15.261585,1514.3,1513.9,0.36265391]
[1674060813442,15.261585,1514.3,1513.8,0.4955]
[1674060813443,6.66986,1514.3,1513.8,7.10133]
[1674060813609,1.0,1514.2,1514.1,0.36265391]
[1674060813803,1.0,1514.2,1513.7,0.066]
[1674060813804,19.8144,1514.1,1513.7,0.066]
[1674060814016,20.3758,1514.1,1513.5,0.36265391]
[1674060814240,19.81701,1513.9,1513.3,0.066]
[1674060814457,3.4955,1513.8,1513.2,0.66802723]
[1674060814646,20.16917,1513.7,1513.5,0.36265391]
[1674060814885,20.23517,1513.7,1513.5,0.36265391]
[1674060815130,21.23517,1513.7,1513.3,0.36265391]
[1674060815276,14.62863,1513.7,1513.2,7.71480723]
[1674060815486,7.02209,1513.7,1513.5,0.36265391]
[1674060815698,0.066,1513.7,1513.5,0.36265391]
[1674060815914,11.10154,1513.8,1513.5,6.96982391]
[1674060815915,1.066,1513.8,1513.5,6.96982391]
[1674060816122,9.60526,1514.0,1513.7,0.36265391]
[1674060816123,16.2766,1514.0,1513.7,0.36265391]
[1674060816335,11.29892,1514.0,1513.7,0.36265391]
[1674060816584,17.90423,1514.0,1513.8,0.36265391]
[1674060816797,13.21194,1513.8,1513.4,0.066]
[1674060817016,13.21194,1513.8,1513.2,6.77476723]
[1674060817017,19.88391,1513.8,1513.2,0.17232723]
[1674060817224,19.88391,1513.8,1513.2,0.10632723]
[1674060817225,19.82094,1513.6,1513.2,0.10632723]
[1674060817385,9.085064,1513.5,1513.2,0.10632723]
[1674060817599,6.67337,1513.5,1513.3,0.36265391]
[1674060817864,1.0,1513.7,1513.5,0.62260116]
[1674060818076,6.60592,1513.8,1513.5,0.62260116]
[1674060818077,13.27809,1513.8,1513.6,0.36265391]
[1674060818228,6.60632,1513.7,1513.6,0.36265391]
[1674060818443,6.67232,1513.7,1513.5,0.62260116]
[1674060819486,15.762689,1513.7,1513.5,0.62260116]
[1674060819697,1.0,1513.6,1513.5,0.62260116]
[1674060819956,14.21352,1513.6,1513.5,0.62260116]
[1674060820274,14.27952,1513.6,1513.5,0.62260116]
[1674060820447,13.27952,1513.6,1513.5,0.98525507]
[1674060820643,0.066,1513.6,1513.5,0.98525507]
[1674060820859,0.066,1513.7,1513.5,0.98525507]
[1674060821070,6.60617,1513.8,1513.5,0.98525507]
[1674060821071,0.066,1513.8,1513.5,0.98525507]
[1674060821327,6.67175,1513.9,1513.7,0.36265391]
[1674060821697,13.27753,1513.9,1513.7,0.36265391]
[1674060822119,0.066,1513.9,1513.5,1.11820116]
[1674060822498,0.066,1514.0,1513.8,0.36265391]
[1674060822644,6.67074,1514.1,1513.8,0.36265391]
[1674060822959,14.27548,1514.1,1514.0,0.36265391]
[1674060823168,13.27548,1514.1,1514.0,0.36265391]
[1674060823453,0.06,1514.5,1514.1,1.20956301]
[1674060823605,0.68770917,1514.8,1514.1,1.20956301]
[1674060823606,1.382,1514.2,1514.1,1.20956301]
[1674060823814,1.653,1514.5,1514.1,14.84721692]
[1674060824071,2.3531712,1514.7,1514.3,0.36265391]
[1674060824266,2.25168009,1514.7,1514.5,0.36265391]
[1674060824474,2.25168009,1514.7,1514.1,3.35796301]
[1674060824475,1.06877092,1514.7,1514.3,0.85805391]
[1674060824685,1.06877092,1514.7,1514.3,0.36265391]
[1674060824686,2.72320028,1514.7,1514.3,0.36265391]
[1674060824930,2.72320028,1514.7,1514.1,2.57221692]
[1674060825143,0.68770917,1514.5,1514.1,1.57221692]
[1674060825337,1.06176885,1514.5,1514.1,1.57221692]
[1674060825542,1.0,1514.4,1514.1,1.20956301]
[1674060825793,1.69851058,1514.5,1514.1,1.20956301]
[1674060826013,1.69851058,1514.5,1514.1,1.57221692]
[1674060826014,1.0,1514.4,1514.1,1.57221692]
[1674060826318,1.37340017,1514.4,1514.1,0.36265391]
[1674060826477,1.06110934,1514.4,1514.1,0.36265391]
[1674060826688,0.68770917,1514.3,1514.1,0.36265391]
[1674060826905,3.09660045,1514.4,1514.1,0.36265391]
[1674060827541,2.09660045,1514.4,1514.1,0.36265391]
[1674060827732,0.68770917,1514.3,1513.9,1.0]
[1674060827944,0.68770917,1514.3,1514.1,0.36265391]
[1674060828154,1.72320028,1514.4,1514.1,0.40004462]
[1674060828417,0.68770917,1514.4,1514.1,0.40004462]
[1674060828940,1.72320028,1514.4,1514.1,0.40004462]
[1674060829252,1.72320028,1514.4,1514.1,0.03739071]
[1674060829659,0.68770917,1514.4,1514.1,0.03739071]
[1674060829993,0.68770917,1514.2,1513.9,0.42865391]
[1674060830229,1.18481668,1514.1,1513.9,0.36265391]
[1674060830366,0.11848167,1514.0,1513.9,0.36265391]
[1674060830743,0.11848167,1514.0,1513.5,6.67297]
[1674060830744,1.18481668,1514.1,1513.5,6.67297]
[1674060831423,1.0,1514.0,1513.7,0.36265391]
[1674060831646,1.68941668,1514.0,1513.7,0.36265391]
[1674060831845,8.29443668,1514.0,1513.7,0.36265391]
[1674060832057,10.23809494,1514.0,1513.7,0.36265391]
[1674060832297,9.23809494,1514.0,1513.7,0.36265391]
[1674060832514,7.35043668,1514.0,1513.7,0.36265391]
[1674060833261,7.35043668,1514.0,1513.4,8.44022]
[1674060833262,0.74541668,1514.0,1513.9,0.36265391]
[1674060833416,0.68941668,1514.0,1513.9,0.36265391]
[1674060833626,1.18481668,1514.1,1513.9,0.36265391]
[1674060833840,1.18481668,1514.1,1513.8,0.36265391]
[1674060833841,1.81874588,1514.1,1513.8,0.36265391]
[1674060834085,9.45908699,1514.1,1513.8,0.36265391]
[1674060834255,7.84566668,1514.1,1513.8,0.36265391]
[1674060834465,0.74541668,1514.1,1513.8,0.36265391]
[1674060834706,0.68941668,1514.1,1513.8,0.36265391]
[1674060835283,1.79090779,1514.3,1514.0,0.36265391]
[1674060835409,1.75541668,1514.3,1513.9,6.65545]
[1674060835619,0.75541668,1514.4,1514.2,0.36265391]
[1674060835936,1.72490779,1514.5,1514.2,6.96673391]
[1674060836184,1.72490779,1514.5,1514.2,6.67008]
[1674060836185,0.68941668,1514.4,1514.2,6.67008]
[1674060836553,0.68941668,1514.4,1514.2,0.066]
[1674060836831,1.68941668,1514.4,1514.1,0.36265391]
[1674060837050,0.68941668,1514.4,1514.1,0.36265391]
[1674060837195,0.68941668,1514.4,1514.1,6.96719391]
[1674060837405,0.68941668,1514.5,1514.3,0.36265391]
[1674060837673,0.68941668,1514.6,1514.3,0.36265391]
[1674060837820,1.82344203,1514.8,1514.5,0.36265391]
[1674060837821,1.03949111,1514.8,1514.5,0.36265391]
[1674060838035,1.72273169,1514.9,1514.6,0.7253]
[1674060838245,0.68909268,1514.9,1514.8,0.36265391]
[1674060838507,1.82598522,1515.0,1514.8,0.36265391]
[1674060839074,0.79234621,1515.0,1514.8,0.36265391]
[1674060839247,1.82598522,1515.0,1514.8,0.36265391]
[1674060839419,1.82598522,1515.0,1514.7,0.066]
[1674060839420,1.03363901,1514.9,1514.7,0.066]
[1674060839628,0.68854891,1514.8,1514.6,0.4953]
[1674060839828,0.68854891,1514.8,1514.5,0.42865391]
[1674060839829,0.68854891,1514.8,1514.5,0.4953]
[1674060840038,1.68854891,1514.8,1514.5,0.85795391]
[1674060840383,0.68854891,1514.8,1514.5,0.85795391]
[1674060840593,0.68854891,1514.8,1514.5,0.36265391]
[1674060840594,0.68854891,1514.7,1514.5,0.36265391]
[1674060840767,1.72218792,1514.7,1514.5,0.36265391]
[1674060840978,0.68854891,1514.7,1514.5,0.36265391]
[1674060841397,1.03363901,1514.8,1514.5,7.96514391]
[1674060841398,1.72218792,1514.8,1514.5,7.96514391]
[1674060841607,1.72218792,1514.9,1514.5,6.66849]
[1674060841872,0.68854891,1514.9,1514.7,0.36265391]
[1674060842062,1.82544145,1515.0,1514.7,6.96447391]
[1674060842277,1.82544145,1515.0,1514.7,13.26978]
[1674060842658,0.79180244,1515.0,1514.9,6.96374391]
[1674060842868,0.79180244,1515.0,1514.9,7.02974391]
[1674060842869,0.10325353,1515.0,1514.9,7.02974391]
[1674060843501,5.353e-05,1515.0,1514.9,13.86083391]
[1674060843769,0.10257145,1515.1,1515.0,1.0]
[1674060843936,0.10257145,1515.1,1515.0,14.20132]
[1674060844131,0.10257145,1515.1,1515.0,13.26732]
[1674060844343,7.145e-05,1515.1,1515.0,20.59308]
[1674060844616,0.09774185,1515.3,1515.0,24.59308]
[1674060844922,0.85526947,1515.6,1515.2,26.76177391]
[1674060845089,0.78926947,1515.6,1515.5,0.36265391]
[1674060845299,0.10072056,1515.6,1515.5,0.36265391]
[1674060845724,1.64256032,1515.6,1515.3,0.066]
[1674060845929,1.64256032,1515.6,1515.2,0.36265391]
[1674060845930,0.68854891,1515.5,1515.2,0.36265391]
[1674060846144,0.93855884,1515.5,1515.0,7.02901391]
[1674060846354,1.68854891,1515.5,1515.0,7.02901391]
[1674060846560,0.68854891,1515.4,1515.0,0.42865391]
[1674060846806,1.5172788,1515.4,1515.0,0.36265391]
[1674060847133,0.495,1515.3,1514.9,6.60095]
[1674060847444,1.495,1515.3,1514.9,0.42865391]
[1674060847766,1.495,1515.3,1514.9,0.36265391]
[1674060847767,1.16650205,1515.3,1514.9,0.36265391]
[1674060847913,1.85505096,1515.3,1514.9,0.36265391]
[1674060848126,1.0,1515.2,1514.9,0.36265391]
[1674060848454,0.4855051,1515.2,1514.9,0.36265391]
[1674060848664,0.4951,1515.1,1514.9,0.36265391]
[1674060848879,0.4951,1515.1,1515.0,0.36265391]
[1674060849067,0.4951,1515.2,1515.0,0.36265391]
[1674060849442,3.51318792,1515.5,1515.0,14.56394391]
[1674060849443,0.066,1515.5,1515.0,14.56394391]
[1674060849630,0.10072056,1515.6,1515.4,0.36265391]
[1674060850518,0.10072056,1515.6,1515.1,7.02868391]
[1674060850705,0.10072056,1515.6,1515.1,6.66603]
[1674060850932,1.51041451,1515.6,1515.1,6.66603]
[1674060851093,0.495,1515.5,1515.1,0.42865391]
[1674060851463,13.19696,1515.5,1515.0,1.1242]
[1674060851777,13.19879,1515.3,1515.0,1.0582]
[1674060851967,7.09495,1515.2,1515.0,1.0582]
[1674060852181,3.0,1515.1,1515.0,1.0582]
[1674060852368,3.4951,1515.1,1515.0,1.0582]
[1674060852578,0.066,1515.2,1515.0,1.0582]
[1674060852833,0.16672056,1515.6,1515.1,0.36265391]
[1674060852992,0.10072056,1515.6,1515.3,0.36265391]
[1674060853570,6.69887056,1515.6,1515.3,0.36265391]
[1674060853722,6.75487056,1515.6,1515.3,0.36265391]
[1674060854151,0.15672056,1515.6,1515.3,0.36265391]
[1674060854386,0.10072056,1515.6,1515.3,0.36265391]
[1674060854557,0.10072056,1515.6,1515.3,0.08577539]
[1674060854775,0.10072056,1515.6,1515.5,0.36265391]
[1674060855366,13.29680056,1515.6,1515.3,0.36265391]
[1674060855505,13.35280056,1515.6,1515.3,0.36265391]
[1674060855711,6.75476056,1515.6,1515.5,0.36265391]
[1674060856182,14.68904062,1515.6,1515.2,0.066]
[1674060856354,14.68904062,1515.6,1515.2,0.012]
[1674060856565,19.7972,1515.4,1515.0,1.42085391]
[1674060856830,19.8532,1515.4,1515.0,1.42085391]
[1674060857135,19.8532,1515.4,1515.2,0.36265391]
[1674060858290,19.8532,1515.4,1515.3,0.36265391]
[1674060859235,6.65494,1515.4,1515.3,0.36265391]
[1674060859970,13.25385,1515.4,1515.3,0.36265391]
[1674060860178,6.65491,1515.4,1515.3,0.36265391]
[1674060860548,0.004,1515.4,1515.3,0.85765391]
[1674060860758,0.0045989,1515.9,1515.4,1.004]
[1674060860970,0.0045989,1515.9,1515.8,0.36265391]
[1674060861717,0.6755989,1515.9,1515.6,1.066]